bitfinex-derivatives/quotes_SOLF0:USTF0_20250509
["timestamp","ask_amount","ask_price","bid_price","bid_amount"]
[1746791269222,40.82,174.22,174.07,40.82]
[1746791269621,5.7425,174.17,174.14,5.7431]
[1746791269822,40.82,174.22,174.07,40.82]
[1746791270321,17.28454971,174.21,174.07,40.82]
[1746791270527,28.76714971,174.21,174.04,1.9148]
[1746791270821,483.76714971,174.21,174.07,5.7454]
[1746791271121,1.00208443,174.2,174.07,5.7454]
[1746791271316,5.7449,174.1,174.06,5.7459]
[1746791271526,40.8,174.15,174.04,1.9148]
[1746791272019,40.8,174.15,174.08,5.7451]
[1746791272222,40.8,174.15,174.04,1.9148]
[1746791273018,40.8,174.17,174.05,62.0]
[1746791273227,5.7433,174.14,174.11,5.7443]
[1746791273718,5.7436,174.13,174.1,5.7445]
[1746791273923,40.8,174.17,174.04,1.9148]
[1746791274322,40.8,174.17,174.08,5.7451]
[1746791274623,40.8,174.17,174.04,1.9148]
[1746791274823,5.7441,174.12,174.04,1.9148]
[1746791275123,40.8,174.17,174.04,1.9148]
[1746791275317,5.7442,174.12,174.09,5.7449]
[1746791275519,40.8,174.17,174.04,1.9148]
[1746791275823,5.744,174.13,174.09,5.7447]
[1746791276123,5.744,174.13,174.04,1.9148]
[1746791276422,5.744,174.12,174.1,5.7446]
[1746791276623,5.744,174.12,174.04,1.9148]
[1746791277123,5.744,174.12,174.09,5.7447]
[1746791277419,17.28454971,174.16,173.98,52.257]
[1746791277624,17.28454971,174.12,173.94,1.8145]
[1746791277929,40.76,174.11,173.96,1.9427]
[1746791278222,40.76,174.1,173.96,1.9427]
[1746791278723,40.76,174.1,173.97,11.4978]
[1746791278924,40.76,174.12,173.96,1.9427]
[1746791279313,40.76,174.12,173.99,11.4963]
[1746791279717,40.76,174.12,174.0,40.74]
[1746791280523,455.0,174.21,174.04,17.28454971]
[1746791280719,495.74,174.21,174.16,5.7424]
[1746791281024,495.74,174.21,174.08,40.74]
[1746791281219,495.74,174.21,174.17,5.7421]
[1746791281724,495.74,174.21,174.08,40.74]
[1746791281922,495.74,174.21,174.05,5.5216]
[1746791282126,5.7447,174.1,174.0,40.72]
[1746791282326,40.72,174.14,174.05,5.7461]
[1746791282624,40.72,174.14,174.0,40.72]
[1746791282826,40.72,174.14,174.09,5.7449]
[1746791283221,5.7445,174.11,174.02,1.9096]
[1746791283426,40.72,174.14,174.02,1.9096]
[1746791283831,5.7452,174.09,174.01,3.7888]
[1746791284124,40.72,174.14,174.01,3.7888]
[1746791284515,40.72,174.14,174.06,5.7457]
[1746791284920,40.72,174.14,174.01,3.7888]
[1746791285224,40.7,174.15,174.01,3.7888]
[1746791285615,17.28454971,174.17,174.01,15.284]
[1746791285821,472.28454971,174.21,174.01,21.07334971]
[1746791286020,40.7,174.2,174.01,21.07334971]
[1746791286227,17.28454971,174.17,174.01,3.7888]
[1746791286425,5.7445,174.11,174.01,3.7888]
[1746791286725,40.7,174.13,174.02,1.0]
[1746791287227,57.98454971,174.13,174.02,1.0]
[1746791287725,5.7467,174.04,174.02,1.0]
[1746791288027,5.7469,174.03,174.02,1.0]
[1746791288221,40.68,174.06,174.02,1.0]
[1746791288421,40.68,174.08,174.02,1.0]
[1746791288621,46.4255,174.08,174.02,1.0]
[1746791288823,40.68,174.08,174.02,1.0]
[1746791289025,40.68,174.08,174.03,5.7467]
[1746791289227,40.68,174.08,174.02,1.0]
[1746791289915,5.7463,174.06,174.02,1.0]
[1746791290120,5.7463,174.06,174.02,6.7471]
[1746791290420,5.7464,174.05,174.02,6.7471]
[1746791290722,40.68,174.08,174.02,1.0]
[1746791291517,5.7462,174.06,174.02,1.0]
[1746791291724,40.68,174.08,174.02,1.0]
[1746791293128,5.7469,174.03,174.02,1.0]
[1746791293323,17.28454971,174.06,173.94,5.7499]
[1746791293526,17.28454971,174.06,173.89,458.6736]
[1746791293722,17.28454971,174.06,173.88,1.15021854]
[1746791293918,357.0,174.09,173.89,5.6178]
[1746791294221,5.7464,174.05,173.91,17.28454971]
[1746791294425,40.64,174.08,173.91,17.28454971]
[1746791294623,40.64,174.08,173.9,40.64]
[1746791294824,5.7464,174.05,173.9,40.64]
[1746791295326,40.64,174.08,173.91,11.5019]
[1746791295827,40.64,174.08,173.92,62.0]
[1746791296628,5.7467,174.04,173.92,62.0]
[1746791296926,40.64,174.08,173.92,62.0]
[1746791297127,40.64,174.08,173.97,5.7488]
[1746791297629,5.7482,174.0,173.95,5.7495]
[1746791297830,51.34744243,174.08,173.91,40.6]
[1746791298128,51.34744243,174.08,173.96,5.7492]
[1746791298428,51.34744243,174.08,173.89,5.6178]
[1746791298827,5.7481,174.0,173.89,5.6178]
[1746791299220,40.6,174.02,173.89,5.6178]
[1746791299619,10.70744243,174.0,173.88,1.15021854]
[1746791300022,5.7516,173.89,173.88,1.15021854]
[1746791300628,5.7513,173.9,173.88,1.15021854]
[1746791301024,51.28744243,173.92,173.81,5.7542]
[1746791301223,5.7525,173.87,173.81,5.7542]
[1746791301430,5.7525,173.87,173.8,30.75339511]
[1746791301728,5.7518,173.89,173.8,30.75339511]
[1746791301925,40.58,173.92,173.8,30.75339511]
[1746791302119,40.58,173.92,173.71,455.2]
[1746791302319,5.7529,173.85,173.72,1.7863]
[1746791302522,40.58,173.86,173.72,1.7863]
[1746791303828,46.3327,173.86,173.81,5.7541]
[1746791304029,40.58,173.86,173.81,5.7541]
[1746791304220,40.58,173.86,173.72,63.7863]
[1746791304425,40.58,173.86,173.8,5.7545]
[1746791304624,40.58,173.86,173.72,104.3463]
[1746791304832,40.58,173.86,173.72,63.7863]
[1746791305925,40.58,173.86,173.73,17.4322257]
[1746791306133,1.15002012,173.91,173.73,17.4322257]
[1746791306428,41.71002012,173.91,173.87,5.752]
[1746791306621,1.15002012,173.91,173.77,40.56]
[1746791306821,1.15002012,173.91,173.78,1.9759]
[1746791307033,1.15002012,173.91,173.9,5.7512]
[1746791307430,1.15002012,173.91,173.89,5.7515]
[1746791307634,1.15002012,173.91,173.8,1.8011]
[1746791307933,1.15002012,173.91,173.87,5.7521]
[1746791308135,1.15002012,173.91,173.81,1.7952]
[1746791308524,1.15002012,173.91,173.9,5.7512]
[1746791312569,455.2,173.99,173.85,17.4322257]
[1746791312769,40.52,173.99,173.86,1.806]
[1746791313265,46.247,174.03,173.86,1.806]
[1746791313469,40.5,174.03,173.86,1.806]
[1746791313869,5.7473,174.02,173.98,5.7484]
[1746791314070,5.7473,174.02,173.88,11.5038]
[1746791314285,40.5,174.03,173.89,1.9403]
[1746791314469,40.5,174.03,174.0,5.7477]
[1746791314666,472.9522257,174.07,173.89,1.9403]
[1746791314667,472.9522257,174.07,173.91,40.48]
[1746791314954,46.2261,174.06,174.03,5.7469]
[1746791315153,40.48,174.06,174.03,5.7469]
[1746791315356,40.48,174.06,173.91,51.9818]
[1746791315550,46.2263,174.06,174.02,5.7472]
[1746791315749,455.52,174.07,173.93,17.4322257]
[1746791315951,496.0,174.07,173.94,1.8562]
[1746791316251,40.48,174.13,173.95,79.4322257]
[1746791316653,5.744,174.12,174.08,5.7452]
[1746791316955,17.39242899,174.11,173.95,62.0]
[1746791317254,17.39242899,174.11,173.94,1.8562]
[1746791317255,5.7472,174.03,173.94,1.8562]
[1746791317752,5.7479,174.01,173.96,5.749]
[1746791318251,5.7479,174.01,173.94,1.8562]
[1746791318452,5.7479,174.0,173.96,5.7492]
[1746791318653,40.46,174.05,173.94,1.8562]
[1746791319153,5.7479,174.01,173.97,5.7489]
[1746791319451,40.46,174.05,173.9,1.7934]
[1746791319952,5.7482,174.0,173.96,5.749]
[1746791320352,5.7477,174.01,173.97,5.7486]
[1746791320555,40.46,174.05,173.9,1.7934]
[1746791320954,40.46,174.05,174.0,5.7478]
[1746791321148,40.46,174.05,173.9,1.7934]
[1746791321454,46.2065,174.05,174.0,5.7476]
[1746791321656,40.46,174.05,173.9,1.7934]
[1746791321955,46.2064,174.05,174.0,5.7478]
[1746791322450,1.1445,174.06,174.03,5.7469]
[1746791322657,40.4,174.08,173.95,40.4]
[1746791322861,1.1455,174.13,173.95,40.4]
[1746791323054,5.745,174.1,174.07,5.7456]
[1746791323359,5.745,174.1,173.95,40.4]
[1746791323760,5.7444,174.11,174.06,5.7457]
[1746791323958,40.4,174.12,173.96,73.4985]
[1746791324156,40.4,174.12,173.97,3.7531]
[1746791325060,357.0,174.11,173.97,1.7799]
[1746791325259,1.14876507,174.1,173.91,1.9732]
[1746791325558,1.14876507,174.1,173.97,5.7487]
[1746791325760,1.14876507,174.1,173.91,3.7582]
[1746791326462,1.14876507,174.1,173.98,5.7484]
[1746791326763,1.14876507,174.1,173.91,3.7582]
[1746791326958,1.14876507,174.1,173.97,5.7487]
[1746791326959,5.7478,174.01,173.97,5.7487]
[1746791327161,5.7478,174.01,173.91,3.7582]
[1746791327463,40.36,174.03,173.91,3.7582]
[1746791327668,5.7483,173.99,173.96,5.749]
[1746791327961,40.36,174.03,173.91,3.7582]
[1746791328164,5.7474,174.02,173.99,5.748]
[1746791328359,40.36,174.03,173.91,3.7582]
[1746791328559,40.34,174.08,173.91,21.15062899]
[1746791328759,5.7458,174.07,174.03,5.7467]
[1746791329061,40.34,174.09,173.96,40.34]
[1746791329863,5.7459,174.07,174.03,5.7467]
[1746791330060,40.34,174.09,173.96,40.34]
[1746791330965,5.7469,174.04,174.0,5.7477]
[1746791331165,5.7469,174.04,173.96,40.34]
[1746791331461,5.7471,174.03,173.96,40.34]
[1746791331656,40.34,174.09,173.92,1.8133]
[1746791331657,40.34,174.09,173.92,42.1333]
[1746791332062,40.34,174.09,173.99,5.7482]
[1746791332359,57.73242899,174.09,173.92,42.1333]
[1746791332568,5.7472,174.03,173.99,5.748]
[1746791332865,1.14876507,174.1,173.92,42.1333]
[1746791333065,46.0455,174.08,174.04,5.7463]
[1746791333267,40.3,174.08,173.95,17.39242899]
[1746791333767,40.3,174.08,173.92,1.8133]
[1746791333962,40.3,174.08,173.92,42.0933]
[1746791334162,5.7472,174.03,173.99,5.7481]
[1746791334566,40.3,174.08,173.99,5.7481]
[1746791334763,40.3,174.08,173.97,5.7487]
[1746791334963,40.3,174.08,173.92,42.0933]
[1746791335272,5.7478,174.01,173.98,5.7486]
[1746791338270,40.3,174.08,173.92,42.0933]
[1746791338865,5.7478,174.01,173.98,5.7485]
[1746791339169,40.3,174.08,173.92,42.0933]
[1746791339570,40.3,174.08,173.99,5.7482]
[1746791340073,5.7478,174.01,173.98,5.7485]
[1746791340266,5.7478,174.01,173.92,42.0933]
[1746791340865,5.7478,174.01,173.98,5.7483]
[1746791341066,5.7474,174.02,173.92,42.0933]
[1746791341269,40.3,174.08,173.92,42.0933]
[1746791341472,17.39242899,174.07,173.92,1.8133]
[1746791342768,17.39242899,174.07,173.96,5.7491]
[1746791343071,5.7484,173.99,173.96,5.7491]
[1746791343271,5.7484,173.99,173.92,1.8133]
[1746791343571,5.7481,174.0,173.92,1.8133]
[1746791343975,5.7481,174.0,173.97,5.7488]
[1746791344272,40.18,174.02,173.97,5.7488]
[1746791344468,40.18,174.02,173.96,5.7491]
[1746791344664,40.18,174.02,173.85,455.38]
[1746791344862,40.18,174.02,173.83,90.89922899]
[1746791344863,17.39242899,173.99,173.86,3.7837]
[1746791345263,5.7508,173.92,173.86,3.7837]
[1746791345476,40.16,173.96,173.86,3.7837]
[1746791345867,5.7506,173.93,173.86,3.7837]
[1746791346069,40.16,173.96,173.86,3.7837]
[1746791346274,5.7503,173.93,173.89,5.7516]
[1746791346476,40.16,173.96,173.89,5.7516]
[1746791346769,40.16,173.96,173.86,3.7837]
[1746791347362,1.1444,174.01,173.86,3.7837]
[1746791347567,41.2844,174.01,173.86,3.7837]
[1746791347771,40.14,174.01,173.87,62.0]
[1746791347976,40.14,174.01,173.88,40.14]
[1746791348575,5.7494,173.96,173.93,5.7502]
[1746791348775,5.7494,173.96,173.88,40.14]
[1746791348975,5.7494,173.96,173.92,5.7505]
[1746791349177,5.749,173.97,173.88,40.14]
[1746791349370,40.14,174.01,173.88,40.14]
[1746791349773,10.71828752,173.99,173.86,4.7837]
[1746791350181,10.71828752,173.95,173.86,1.0]
[1746791350479,40.1,173.94,173.86,1.0]
[1746791350678,5.7522,173.88,173.86,1.0]
[1746791350878,41.2453,173.94,173.86,1.0]
[1746791351070,5.7522,173.87,173.86,1.0]
[1746791352380,40.08,173.93,173.86,1.0]
[1746791352781,5.7516,173.89,173.86,6.7525]
[1746791352983,40.08,173.93,173.86,1.0]
[1746791353877,5.7518,173.89,173.86,1.0]
[1746791354084,40.08,173.93,173.86,1.0]
[1746791354283,1.1466,173.92,173.86,1.0]
[1746791354482,5.7522,173.87,173.86,1.0]
[1746791354782,40.06,173.87,173.73,40.06]
[1746791354984,40.06,173.87,173.74,1.8111]
[1746791355385,5.753,173.85,173.81,5.754]
[1746791355581,40.06,173.87,173.74,1.8111]
[1746791356387,40.06,173.87,173.78,5.7551]
[1746791356388,5.7542,173.82,173.78,5.7551]
[1746791356885,40.06,173.87,173.77,5.7554]
[1746791357385,40.06,173.87,173.74,1.8111]
[1746791358788,40.06,173.87,173.78,5.755]
[1746791359288,5.7541,173.82,173.79,5.7548]
[1746791359491,40.06,173.87,173.74,1.8111]
[1746791359782,5.753,173.85,173.74,1.8111]
[1746791359988,40.06,173.87,173.74,1.8111]
[1746791360389,5.7528,173.86,173.74,1.8111]
[1746791361483,5.7528,173.86,173.83,5.7535]
[1746791361679,5.7528,173.86,173.74,1.8111]
[1746791361680,17.42954202,173.9,173.74,1.8111]
[1746791361888,40.0,173.89,173.74,1.8111]
[1746791362689,40.0,173.89,173.81,5.754]
[1746791363079,358.1466,173.92,173.81,5.754]
[1746791363285,39.98,173.91,173.74,1.8111]
[1746791363485,17.42954202,173.89,173.74,1.8111]
[1746791363789,17.42954202,173.89,173.79,5.7548]
[1746791363987,17.42954202,173.89,173.74,1.8111]
[1746791364189,17.42954202,173.85,173.72,3.6759]
[1746791364489,17.42954202,173.81,173.64,41.8001]
[1746791364691,17.42954202,173.81,173.64,5.6081]
[1746791365987,1.1519,173.84,173.67,17.42954202]
[1746791366183,41.1119,173.84,173.67,17.42954202]
[1746791366391,58.54144202,173.84,173.68,1.9764]
[1746791366590,17.42954202,173.8,173.68,1.9764]
[1746791366981,17.42954202,173.8,173.71,5.7573]
[1746791367280,17.42954202,173.8,173.68,1.9764]
[1746791367486,5.757,173.73,173.64,3.6317]
[1746791367686,39.94,173.75,173.64,3.6317]
[1746791367986,45.6965,173.75,173.64,3.6317]
[1746791368288,39.94,173.75,173.64,3.6317]
[1746791368489,45.6963,173.75,173.64,3.6317]
[1746791368694,17.42954202,173.82,173.64,3.6317]
[1746791368896,39.92,173.81,173.74,5.7562]
[1746791369193,5.7553,173.78,173.64,3.6317]
[1746791369387,358.15054938,173.83,173.64,3.6317]
[1746791369583,1.15054938,173.83,173.64,3.6317]
[1746791369788,1.15054938,173.83,173.7,17.42954202]
[1746791369988,1.15054938,173.83,173.78,5.7551]
[1746791370289,5.7543,173.81,173.78,5.7551]
[1746791370695,1.15054938,173.83,173.72,1.8542]
[1746791370896,5.7541,173.82,173.72,1.8542]
[1746791371095,1.15054938,173.83,173.72,1.8542]
[1746791372197,1.15054938,173.83,173.82,5.7539]
[1746791372392,1.15054938,173.83,173.72,1.8542]
[1746791372393,39.88,173.91,173.77,39.88]
[1746791372594,5.7519,173.88,173.77,39.88]
[1746791372799,5.7519,173.88,173.85,5.7528]
[1746791372996,39.88,173.93,173.78,17.42954202]
[1746791373197,39.88,173.93,173.79,1.9024]
[1746791373395,39.88,173.93,173.84,5.753]
[1746791373592,39.88,173.93,173.8,1.8122]
[1746791373899,39.88,173.93,173.84,5.753]
[1746791374095,39.88,173.93,173.81,1.8646]
[1746791374597,17.42954202,173.92,173.82,5.7539]
[1746791374796,5.753,173.85,173.81,1.8646]
[1746791375098,17.42954202,173.92,173.81,1.8646]
[1746791375294,17.42954202,173.92,173.8,1.8122]
[1746791375295,5.7535,173.84,173.8,1.8122]
[1746791375500,39.88,173.93,173.85,5.7529]
[1746791375791,357.0,173.95,173.8,1.8122]
[1746791375996,39.84,173.94,173.8,1.8122]
[1746791376401,5.7539,173.82,173.76,39.84]
[1746791376600,39.82,173.86,173.74,1.9682]
[1746791376793,39.82,173.86,173.76,5.7556]
[1746791376994,5.7548,173.8,173.76,5.7556]
[1746791377300,39.82,173.86,173.76,5.7556]
[1746791377698,39.82,173.86,173.74,1.9682]
[1746791378100,5.7541,173.82,173.78,5.755]
[1746791378298,1.147,173.88,173.74,1.9682]
[1746791378601,39.8,173.87,173.74,1.9682]
[1746791379104,5.7533,173.84,173.74,1.9682]
[1746791379303,39.8,173.87,173.74,1.9682]
[1746791379899,5.7527,173.86,173.82,5.7537]
[1746791380096,39.8,173.87,173.82,5.7537]
[1746791380396,5.7531,173.85,173.81,5.7541]
[1746791380600,39.8,173.87,173.74,1.9682]
[1746791381001,5.7538,173.83,173.79,5.7547]
[1746791381203,39.8,173.87,173.79,5.7547]
[1746791381392,5.7541,173.82,173.79,5.7547]
[1746791381598,39.8,173.87,173.74,1.9682]
[1746791381904,5.7538,173.83,173.74,1.9682]
[1746791382101,39.8,173.87,173.79,5.7547]
[1746791382301,39.8,173.87,173.74,1.9682]
[1746791382501,5.7536,173.83,173.74,1.9682]
[1746791382803,39.8,173.87,173.8,5.7545]
[1746791383005,39.8,173.87,173.74,1.9682]
[1746791383200,17.42954202,173.84,173.61,455.76]
[1746791383402,17.42954202,173.8,173.67,1.9445]
[1746791383602,39.74,173.79,173.67,1.9445]
[1746791384707,39.74,173.79,173.61,495.5]
[1746791385006,39.74,173.79,173.61,499.3221]
[1746791385407,5.7574,173.72,173.68,5.7585]
[1746791386108,5.7576,173.71,173.67,5.7588]
[1746791386307,39.72,173.73,173.61,499.3021]
[1746791386708,5.7579,173.7,173.66,5.7591]
[1746791387406,39.72,173.73,173.64,5.7598]
[1746791387710,39.72,173.73,173.61,3.8221]
[1746791388007,5.7586,173.68,173.61,3.8221]
[1746791388209,39.72,173.73,173.61,3.8221]
[1746791389410,5.7578,173.71,173.67,5.7586]
[1746791389609,39.72,173.73,173.61,3.8221]
[1746791389813,17.42954202,173.76,173.61,3.8221]
[1746791390012,5.7566,173.74,173.7,5.7576]
[1746791390304,39.7,173.75,173.61,3.8221]
[1746791390514,5.7568,173.74,173.7,5.7578]
[1746791390707,39.7,173.75,173.7,5.7578]
[1746791391208,39.7,173.75,173.63,1.9103]
[1746791391709,5.7569,173.73,173.63,1.9103]
[1746791392211,5.7569,173.73,173.69,5.758]
[1746791392407,5.7569,173.73,173.63,1.9103]
[1746791392912,5.7569,173.73,173.69,5.758]
[1746791393310,5.7577,173.71,173.63,1.9103]
[1746791393510,39.7,173.75,173.63,1.9103]
[1746791393912,39.7,173.75,173.67,5.7587]
[1746791394115,39.7,173.75,173.63,1.9103]
[1746791394711,5.7578,173.71,173.67,5.7586]
[1746791394915,5.7578,173.71,173.63,1.9103]
[1746791395103,5.7573,173.72,173.68,5.7585]
[1746791395306,39.7,173.75,173.63,1.9103]
[1746791395915,39.7,173.75,173.68,5.7584]
[1746791396418,5.7574,173.72,173.68,5.7584]
[1746791396718,39.7,173.75,173.69,5.7581]
[1746791396915,17.42954202,173.79,173.69,5.7581]
[1746791397116,39.62,173.78,173.69,5.7581]
[1746791397418,39.62,173.78,173.7,5.7577]
[1746791397616,39.62,173.78,173.63,1.9103]
[1746791398813,5.7571,173.73,173.69,5.758]
[1746791399013,39.62,173.78,173.69,5.758]
[1746791399315,39.62,173.78,173.68,5.7585]
[1746791399613,39.62,173.78,173.63,1.9103]
[1746791399817,5.7571,173.73,173.69,5.7579]
[1746791400018,39.62,173.78,173.63,1.9103]
[1746791400416,5.7569,173.73,173.7,5.7576]
[1746791400717,39.62,173.78,173.7,5.7576]
[1746791401018,5.7571,173.73,173.7,5.7576]
[1746791401217,17.42954202,173.79,173.63,1.9103]
[1746791401420,45.3351,173.79,173.63,19.33984202]
[1746791401616,357.0,173.82,173.63,19.33984202]
[1746791401924,5.7569,173.73,173.63,1.9103]
[1746791402219,17.42954202,173.79,173.63,1.9103]
[1746791402919,17.42954202,173.79,173.63,13.4304]
[1746791403220,39.56,173.8,173.66,17.42954202]
[1746791403413,39.56,173.8,173.67,1.8996]
[1746791403817,5.7574,173.72,173.67,1.8996]
[1746791404020,56.98954202,173.8,173.63,1.9103]
[1746791404313,58.14029,173.8,173.63,1.9103]
[1746791404622,5.7578,173.71,173.63,1.9103]
[1746791404920,58.14029,173.8,173.62,5.7604]
[1746791404921,17.42954202,173.72,173.62,5.7604]
[1746791405109,17.42954202,173.72,173.57,1.9228]
[1746791405310,1.1516,173.71,173.57,1.9228]
[1746791406814,495.58,173.74,173.57,1.9228]
[1746791407015,5.7577,173.71,173.67,5.7586]
[1746791407317,495.58,173.74,173.61,39.52]
[1746791407518,5.7588,173.68,173.63,5.7599]
[1746791407915,495.58,173.74,173.57,41.4428]
[1746791408825,5.7589,173.67,173.64,5.7596]
[1746791409119,495.58,173.74,173.57,41.4428]
[1746791409319,17.42954202,173.72,173.57,41.4428]
[1746791409515,17.42954202,173.72,173.57,1.9228]
[1746791409917,17.42954202,173.72,173.61,5.7606]
[1746791410419,17.42954202,173.72,173.57,1.9228]
[1746791410921,17.42954202,173.68,173.5,11.5288]
[1746791411121,17.42954202,173.64,173.47,5.8022]
[1746791411512,17.42954202,173.64,173.52,5.7636]
[1746791411718,17.42954202,173.64,173.47,5.8022]
[1746791412011,5.7624,173.57,173.53,5.7634]
[1746791412216,5.7624,173.57,173.43,17.42954202]
[1746791412217,39.46,173.59,173.39,11.5359]
[1746791412417,17.42954202,173.56,173.41,10.61097991]
[1746791412614,17.42954202,173.56,173.48,5.7649]
[1746791412821,17.42954202,173.56,173.41,10.61097991]
[1746791413122,1.1526,173.58,173.41,10.61097991]
[1746791413414,39.46,173.56,173.41,26.09462193]
[1746791413616,5.7632,173.54,173.5,5.7643]
[1746791413823,5.7632,173.54,173.44,39.46]
[1746791414217,5.7629,173.55,173.44,39.46]
[1746791414512,39.46,173.56,173.44,39.46]
[1746791414724,5.7618,173.59,173.45,17.42954202]
[1746791415023,39.44,173.6,173.45,17.42954202]
[1746791415224,5.7615,173.59,173.45,17.42954202]
[1746791415428,39.44,173.6,173.45,17.42954202]
[1746791415726,39.44,173.6,173.55,5.7626]
[1746791415918,39.44,173.6,173.45,17.42954202]
[1746791416320,456.12,173.63,173.57,5.7622]
[1746791416926,456.12,173.63,173.55,5.7627]
[1746791417426,5.7614,173.6,173.56,5.7625]
[1746791417629,5.7614,173.6,173.52,39.44]
[1746791418128,5.7616,173.59,173.52,39.44]
[1746791418530,5.7616,173.59,173.54,5.7629]
[1746791418926,456.12,173.63,173.47,1.8737]
[1746791419131,17.42954202,173.61,173.47,1.8737]
[1746791419731,17.42954202,173.61,173.45,456.28]
[1746791419922,17.42954202,173.57,173.42,3.8239]
[1746791420124,40.5571,173.56,173.42,3.8239]
[1746791421331,40.5571,173.56,173.42,1.9502]
[1746791421725,40.5571,173.56,173.44,5.7662]
[1746791421927,40.5571,173.56,173.42,1.9502]
[1746791422327,17.42954202,173.53,173.41,1.8866]
[1746791422732,5.7649,173.49,173.45,5.766]
[1746791423131,17.42954202,173.53,173.41,1.8866]
[1746791423332,5.7646,173.5,173.46,5.7657]
[1746791423532,17.42954202,173.53,173.41,1.8866]
[1746791423826,5.7636,173.53,173.41,1.8866]
[1746791424034,40.5571,173.56,173.41,1.8866]
[1746791424531,5.7641,173.52,173.41,1.8866]
[1746791424832,40.5571,173.56,173.41,1.8866]
[1746791425535,357.0,173.65,173.43,17.42954202]
[1746791425832,39.34,173.6,173.44,39.34]
[1746791426033,5.7616,173.59,173.55,5.7626]
[1746791426626,39.34,173.6,173.46,1.8595]
[1746791426834,396.32,173.65,173.47,17.42954202]
[1746791427332,39.32,173.65,173.47,17.42954202]
[1746791427531,5.7611,173.61,173.56,5.7625]
[1746791427935,39.32,173.65,173.52,39.32]
[1746791428329,39.32,173.65,173.53,1.8138]
[1746791428533,39.32,173.65,173.56,5.7625]
[1746791428736,1.1576,173.69,173.53,1.8138]
[1746791428936,39.3,173.67,173.53,1.8138]
[1746791429235,5.7601,173.64,173.6,5.7612]
[1746791429434,5.7601,173.64,173.55,1.9501]
[1746791429941,39.3,173.68,173.55,1.9501]
[1746791430141,56.72954202,173.68,173.55,1.9501]
[1746791430344,5.7611,173.61,173.55,1.9501]
[1746791430539,56.72954202,173.68,173.55,1.9501]
[1746791430742,56.72954202,173.68,173.34,71.00630268]
[1746791431042,17.42954202,173.64,173.47,495.74]
[1746791431243,17.42954202,173.6,173.51,5.7639]
[1746791431444,39.26,173.6,173.47,495.74]
[1746791431645,5.7627,173.56,173.47,495.74]
[1746791431848,39.26,173.6,173.47,495.74]
[1746791432739,5.7626,173.56,173.47,495.74]
[1746791432944,39.26,173.6,173.47,495.74]
[1746791433251,5.7621,173.58,173.47,495.74]
[1746791433445,39.26,173.6,173.47,495.74]
[1746791433950,39.26,173.6,173.53,5.7635]
[1746791434253,5.7624,173.57,173.53,5.7635]
[1746791434448,5.7624,173.57,173.54,5.7632]
[1746791434649,5.7624,173.57,173.47,557.74]
[1746791434841,39.26,173.6,173.47,495.74]
[1746791435150,5.7623,173.57,173.47,495.74]
[1746791435549,5.7623,173.57,173.54,5.7632]
[1746791435750,5.7623,173.57,173.47,456.46]
[1746791435950,39.26,173.6,173.47,456.46]